bitfinex-derivatives/quotes_SOLF0:USTF0_20250310
["timestamp","ask_amount","ask_price","bid_price","bid_amount"]
[1741642075785,0.06439781,119.64,119.62,47.41950696]
[1741642076182,0.06439781,119.64,119.62,39.05490696]
[1741642076382,0.06439781,119.64,119.63,8.3639]
[1741642077190,0.06439781,119.64,119.62,67.89992784]
[1741642077482,1.45457585,119.73,119.63,275.96]
[1741642077681,2.2081,119.75,119.68,8.36]
[1741642077888,2.2081,119.75,119.67,38.98]
[1741642078089,10.5639,119.75,119.67,38.98]
[1741642078286,10.5639,119.75,119.69,8.359]
[1741642078784,8.41719966,119.73,119.7,0.05376327]
[1741642078988,0.06009966,119.73,119.7,0.05376327]
[1741642079583,8.358,119.72,119.7,0.05376327]
[1741642080990,0.06009966,119.73,119.7,0.05376327]
[1741642081588,0.06009966,119.73,119.72,8.3576]
[1741642082388,4.0944,119.81,119.71,61.04062088]
[1741642082642,46.11288766,119.82,119.77,8.3535]
[1741642083090,54.46358766,119.82,119.77,8.3535]
[1741642083388,46.11288766,119.82,119.76,43.88]
[1741642083588,66.59350854,119.82,119.78,0.05934191]
[1741642083786,20.48062088,119.82,119.78,0.05934191]
[1741642083987,20.48062088,119.8,119.78,0.05934191]
[1741642084291,45.02,119.8,119.72,44.88]
[1741642084492,45.02,119.8,119.7,275.88]
[1741642084886,32.5460551,119.78,119.69,45.02]
[1741642085092,4.2477,119.77,119.69,45.02]
[1741642085289,8.3567,119.74,119.69,53.3793]
[1741642085488,8.41512927,119.74,119.72,0.05644117]
[1741642085888,8.3569,119.73,119.72,0.05644117]
[1741642086591,0.05842927,119.74,119.72,0.05644117]
[1741642086782,2.927e-05,119.74,119.72,0.05644117]
[1741642087383,2.927e-05,119.74,119.72,8.41384117]
[1741642090106,2.927e-05,119.74,119.72,0.05644117]
[1741642090492,2.927e-05,119.74,119.72,8.41384117]
[1741642091292,2.927e-05,119.74,119.72,0.05644117]
[1741642091896,2.927e-05,119.74,119.65,327.5919]
[1741642092400,8.3587,119.71,119.67,8.3608]
[1741642092994,8.3582,119.72,119.65,280.0519]
[1741642093198,0.05316822,119.7,119.68,0.05601654]
[1741642093501,36.8693551,119.75,119.68,8.41641654]
[1741642093697,0.05723045,119.7,119.68,8.41641654]
[1741642093998,36.8693551,119.75,119.68,8.41601654]
[1741642094198,0.05690683,119.7,119.68,8.41601654]
[1741642094395,36.8693551,119.75,119.68,8.41601654]
[1741642094396,4.3233,119.75,119.68,0.05601654]
[1741642094595,0.05723045,119.7,119.69,8.3597]
[1741642095000,0.05723045,119.71,119.69,8.3597]
[1741642095998,0.05723045,119.71,119.68,0.05408216]
[1741642096202,0.05723045,119.71,119.68,8.41418216]
[1741642097301,8.41573045,119.71,119.68,8.41418216]
[1741642097503,8.41573045,119.71,119.68,0.05408216]
[1741642098198,0.05723045,119.71,119.68,0.05408216]
[1741642100002,8.3597,119.69,119.68,0.05408216]
[1741642102303,8.3594,119.7,119.68,0.05408216]
[1741642103308,8.3597,119.69,119.68,0.05408216]
[1741642104505,22.54063114,119.7,119.62,4.2867]
[1741642104710,20.37703114,119.68,119.62,4.2867]
[1741642104897,20.37703114,119.68,119.62,12.6508]
[1741642105308,67.09703114,119.68,119.62,12.6508]
[1741642105510,0.06415632,119.66,119.64,0.05829623]
[1741642106035,8.3625,119.65,119.64,0.05829623]
[1741642106907,8.3644,119.63,119.6,8.3657]
[1741642107102,32.61724036,119.66,119.6,8.3657]
[1741642107408,8.3646,119.63,119.6,8.3657]
[1741642107609,32.61724036,119.66,119.6,8.3657]
[1741642108006,0.05356196,119.64,119.62,0.05612964]
[1741642108305,8.3639,119.63,119.62,0.05612964]
[1741642109609,8.41706196,119.64,119.62,0.05612964]
[1741642109913,0.05356196,119.64,119.62,0.05612964]
[1741642110244,8.3639,119.63,119.62,0.05612964]
[1741642111805,8.3702,119.54,119.51,8.3722]
[1741642112011,46.54,119.56,119.48,144.86236459]
[1741642112507,46.54,119.56,119.49,119.44514652]
[1741642112713,8.3702,119.54,119.49,119.44514652]
[1741642113110,0.05990699,119.53,119.5,8.43606189]
[1741642114112,0.05990699,119.53,119.51,8.3723]
[1741642114441,0.05990699,119.53,119.5,0.06326189]
[1741642114611,0.05990699,119.53,119.51,8.3719]
[1741642114914,0.05990699,119.53,119.5,0.06326189]
[1741642115411,0.05990699,119.53,119.51,8.3719]
[1741642115615,0.05990699,119.53,119.5,0.06326189]
[1741642115808,8.43100699,119.53,119.5,0.06326189]
[1741642116210,0.05990699,119.53,119.5,0.06326189]
[1741642116546,8.43120699,119.53,119.5,0.06326189]
[1741642116706,1.45609741,119.6,119.51,50.88]
[1741642116908,32.61724036,119.69,119.56,32.61724036]
[1741642117114,4.92898937,119.68,119.57,53.26]
[1741642117308,4.92898937,119.68,119.57,57.3069]
[1741642117509,4.92806572,119.67,119.61,8.3648]
[1741642117719,32.61724036,119.69,119.61,8.3648]
[1741642117912,0.05684485,119.65,119.63,0.05551965]
[1741642119514,0.05684485,119.65,119.63,8.41931965]
[1741642119846,0.05684485,119.65,119.63,0.05551965]
[1741642120616,0.05684485,119.65,119.64,8.3632]
[1741642124613,234.97474036,119.73,119.66,8.3614]
[1741642124821,239.21304036,119.73,119.66,8.3614]
[1741642125021,239.21304036,119.73,119.62,2.1207]
[1741642125221,230.85554036,119.73,119.62,2.1207]
[1741642125517,4.92762802,119.72,119.62,2.1207]
[1741642125720,8.3587,119.71,119.65,8.3621]
[1741642126020,0.05267836,119.68,119.66,0.06330318]
[1741642127118,0.05267836,119.68,119.67,8.3611]
[1741642127318,0.05267836,119.68,119.66,0.06330318]
[1741642128018,0.05267836,119.68,119.67,8.3611]
[1741642128413,0.05267836,119.68,119.66,0.06330318]
[1741642128813,0.05267836,119.68,119.66,8.42480318]
[1741642129822,0.05267836,119.68,119.67,8.3611]
[1741642132221,0.05267836,119.68,119.66,0.06330318]
[1741642133414,0.05267836,119.68,119.66,8.42460318]
[1741642133923,0.05267836,119.68,119.66,0.06330318]
[1741642135025,0.05267836,119.68,119.67,8.3611]
[1741642136027,0.05267836,119.68,119.66,8.42470318]
[1741642136838,8.41317836,119.68,119.66,8.42470318]
[1741642137223,8.41317836,119.68,119.66,0.06330318]
[1741642138125,8.3611,119.67,119.66,0.06330318]
[1741642138719,13.31338935,119.67,119.66,0.06330318]
[1741642139527,13.31424916,119.67,119.66,0.06330318]
[1741642139725,8.3643,119.63,119.6,8.3658]
[1741642139930,8.3643,119.63,119.57,52.3361]
[1741642140322,8.3643,119.63,119.59,8.3662]
[1741642140624,8.3643,119.63,119.57,52.3361]
[1741642140827,0.05828142,119.61,119.59,0.05561368]
[1741642141041,0.05828142,119.61,119.59,8.42181368]
[1741642141228,0.05828142,119.61,119.59,0.05561368]
[1741642141621,8.42398142,119.61,119.59,0.05561368]
[1741642142423,8.366,119.6,119.59,0.05561368]
[1741642142623,8.366,119.6,119.54,327.7025]
[1741642142823,0.05828142,119.61,119.54,327.7025]
[1741642142824,32.61724036,119.61,119.54,51.8425]
[1741642143029,8.3682,119.57,119.54,51.8425]
[1741642143431,2.1198,119.6,119.54,49.72]
[1741642143630,37.5751596,119.59,119.52,2.0421]
[1741642143823,5.0143574,119.58,119.55,0.05858653]
[1741642144024,8.3688,119.56,119.55,0.05858653]
[1741642144828,8.3688,119.56,119.51,2.1225]
[1741642145127,8.3698,119.55,119.51,2.1225]
[1741642145725,34.75034036,119.59,119.51,2.1225]
[1741642145928,32.61724036,119.57,119.49,327.5109]
[1741642146130,0.06108986,119.56,119.54,0.05432446]
[1741642146627,8.3695,119.55,119.54,0.05432446]
[1741642146834,0.06108986,119.56,119.49,10.4441]
[1741642147134,83.88224036,119.57,119.49,10.4441]
[1741642147426,83.88224036,119.57,119.5,8.3729]
[1741642147834,8.3716,119.53,119.49,2.0709]
[1741642148029,8.3716,119.53,119.52,0.06254915]
[1741642150437,397.23704043,119.53,119.38,89.56946737]
[1741642150731,7.02155971,119.52,119.39,38.90204036]
[1741642150931,4.94337448,119.51,119.41,32.61724036]
[1741642151137,2.079,119.52,119.42,48.52]
[1741642151333,8.3742,119.49,119.44,8.377]
[1741642151540,0.05555706,119.48,119.46,0.06000387]
[1741642152638,8.43005706,119.48,119.46,0.06000387]
[1741642153037,0.05555706,119.48,119.46,0.06000387]
[1741642153243,8.3751,119.47,119.46,0.06000387]
[1741642155732,8.3751,119.47,119.46,3.87e-06]
[1741642158742,40.99234036,119.47,119.46,3.87e-06]
[1741642159545,40.99234036,119.47,119.39,6.2848]
[1741642159546,8.3794,119.41,119.39,6.2848]
[1741642159846,47.36,119.46,119.39,6.2848]
[1741642160647,0.05866485,119.44,119.41,0.06064115]
[1741642161648,0.05866485,119.44,119.41,8.43934115]
[1741642162255,8.3779,119.43,119.41,0.06064115]
[1741642162453,0.05866485,119.44,119.41,0.06064115]
[1741642162848,8.43626485,119.44,119.41,0.06064115]
[1741642163857,0.05866485,119.44,119.41,8.43954115]
[1741642164556,8.3779,119.43,119.41,0.06064115]
[1741642165157,8.3786,119.42,119.41,0.06064115]
[1741642166053,0.05866485,119.44,119.42,8.3786]
[1741642166248,0.05866485,119.44,119.41,0.06064115]
[1741642166662,0.05866485,119.44,119.41,8.43964115]
[1741642167348,0.05866485,119.44,119.41,0.06064115]
[1741642167557,8.43636485,119.44,119.41,0.06064115]
[1741642168155,8.43636485,119.44,119.41,8.43994115]
[1741642169261,0.05866485,119.44,119.41,0.06064115]
[1741642169767,0.05866485,119.44,119.42,8.3783]
[1741642170059,0.05866485,119.44,119.41,0.06064115]
[1741642170460,0.05866485,119.44,119.43,8.3779]
[1741642175264,8.3754,119.47,119.41,45.72064115]
[1741642175465,8.3747,119.48,119.45,8.3765]
[1741642175665,8.3747,119.48,119.41,45.66]
[1741642175867,8.3747,119.48,119.45,8.3762]
[1741642176066,28.82820606,119.49,119.41,45.66]
[1741642176267,20.45420606,119.51,119.41,66.11420606]
[1741642176659,0.05718377,119.46,119.45,8.3765]
[1741642176864,8.372,119.52,119.46,4.1526]
[1741642177063,20.45420606,119.53,119.46,4.1526]
[1741642177465,8.3727,119.51,119.46,4.1526]
[1741642177668,20.45420606,119.53,119.46,4.1526]
[1741642177959,0.05480458,119.5,119.47,0.05932725]
[1741642178376,0.05480458,119.5,119.48,8.3741]
[1741642178757,0.05480458,119.5,119.47,0.05932725]
[1741642178962,8.42780458,119.5,119.47,0.05932725]
[1741642179164,0.05480458,119.5,119.47,0.05932725]
[1741642179964,8.374,119.49,119.47,0.05932725]
[1741642180266,0.05480458,119.5,119.47,0.05932725]
[1741642180669,8.3744,119.48,119.47,0.05932725]
[1741642181874,8.3744,119.48,119.47,2.725e-05]
[1741642183066,7.45880644,119.48,119.37,4.2032]
[1741642183369,20.45420606,119.45,119.37,6.3496]
[1741642183567,8.3791,119.42,119.38,8.3812]
[1741642183768,65.79420606,119.45,119.38,8.3812]
[1741642183970,8.3789,119.42,119.39,8.3804]
[1741642184165,8.3789,119.42,119.4,0.05515262]
[1741642184369,0.05817917,119.43,119.4,0.05515262]
[1741642184706,8.43657917,119.43,119.4,8.43515262]
[1741642185170,0.05817917,119.43,119.4,0.05515262]
[1741642185371,8.3787,119.42,119.4,0.05515262]
[1741642185674,0.05817917,119.43,119.4,0.05515262]
[1741642186562,0.05817917,119.43,119.42,8.3786]
[1741642188969,65.53420606,119.49,119.4,0.05515262]
[1741642189167,65.53420606,119.49,119.37,6.3496]
[1741642189168,20.45420606,119.44,119.37,6.3496]
[1741642189379,4.97202898,119.43,119.37,14.7314]
[1741642189672,8.3794,119.41,119.37,6.3496]
[1741642189876,66.85420606,119.44,119.37,6.3496]
[1741642190088,8.3807,119.39,119.38,0.05433168]
[1741642190467,0.05382335,119.4,119.38,0.05433168]
[1741642190668,8.3807,119.39,119.38,0.05433168]
[1741642192978,13.35894847,119.39,119.38,0.05433168]
[1741642193178,8.3829,119.36,119.34,2.055]
[1741642194179,0.06416152,119.36,119.34,0.06285383]
[1741642194874,13.36416466,119.35,119.34,0.06285383]
[1741642196497,8.3835,119.35,119.34,0.06285383]
[1741642203087,53.96716152,119.36,119.34,0.06285383]
[1741642203282,0.06416152,119.36,119.34,0.06285383]
[1741642203682,8.3835,119.35,119.34,0.06285383]
[1741642204884,4.96611091,119.35,119.24,44.92]
[1741642205083,20.45420606,119.32,119.24,6.2287]
[1741642205387,8.3882,119.29,119.25,8.3903]
[1741642205981,8.45243978,119.28,119.26,0.0634654]
[1741642206188,0.06363978,119.28,119.26,0.0634654]
[1741642206689,8.45263978,119.28,119.26,0.0634654]
[1741642207091,8.45243978,119.28,119.26,0.0634654]
[1741642207287,0.06363978,119.28,119.26,0.0634654]
[1741642207884,0.06363978,119.28,119.22,6.2971]
[1741642208385,8.3909,119.25,119.22,6.2971]
[1741642208688,20.45420606,119.28,119.22,6.2971]
[1741642208888,20.45420606,119.28,119.22,14.6894]
[1741642209083,0.05765508,119.26,119.24,0.05676558]
[1741642209486,8.44775508,119.26,119.24,0.05676558]
[1741642209988,0.05765508,119.26,119.24,0.05676558]
[1741642210489,0.05765508,119.26,119.24,8.44766558]
[1741642212090,0.05765508,119.26,119.25,8.3906]
[1741642212695,0.05765508,119.26,119.24,8.44766558]
[1741642212992,0.05765508,119.26,119.24,0.05676558]
[1741642213394,0.05765508,119.26,119.25,8.3906]
[1741642222993,0.05765508,119.26,119.24,0.05676558]
[1741642223195,20.51186114,119.26,119.24,0.05676558]
[1741642226405,8.3906,119.25,119.24,0.05676558]
[1741642226800,8.3924,119.23,119.2,8.3938]
[1741642227002,8.3924,119.23,119.19,2.1606]
[1741642227202,20.45420606,119.24,119.19,2.1606]
[1741642228102,8.3932,119.22,119.2,0.05778066]
[1741642228402,20.45420606,119.22,119.2,0.05778066]
[1741642229609,8.3934,119.21,119.2,0.05778066]
[1741642231001,8.3962,119.17,119.15,2.0856]
[1741642231204,8.3962,119.17,119.14,4.2802]
[1741642231403,8.3962,119.17,119.11,324.9864]
[1741642231803,8.3969,119.16,119.11,282.9264]
[1741642231999,20.45420606,119.17,119.11,6.1864]
[1741642232206,20.50754763,119.15,119.12,0.06400562]
[1741642232401,8.3983,119.14,119.12,0.06400562]
[1741642232608,20.45420606,119.15,119.1,20.21995405]
[1741642232847,20.45420606,119.13,119.12,0.06115357]
[1741642233110,28.85320606,119.13,119.12,0.06115357]
[1741642234008,28.85320606,119.13,119.09,8.4014]
[1741642235010,20.45420606,119.13,119.09,8.4014]
[1741642235211,20.45420606,119.1,119.06,91.58866737]
[1741642235507,20.45420606,119.1,119.06,89.56946737]
[1741642235704,0.05605277,119.09,119.07,0.0638208]
[1741642238128,0.05605277,119.09,119.07,8.4669208]
[1741642239211,0.05605277,119.09,119.07,0.0638208]
[1741642240717,0.05605277,119.09,119.07,8.4669208]
[1741642242112,0.05605277,119.09,119.07,0.0638208]
[1741642242323,8.45805277,119.09,119.07,0.0638208]
[1741642242505,20.45420606,119.08,119.07,0.0638208]
[1741642242715,20.45420606,119.08,119.04,8.4051]
[1741642242913,20.45420606,119.06,119.03,2.1572]
[1741642243307,28.85850606,119.06,119.0,4.2309]
[1741642243917,0.06369846,119.04,119.02,0.05334147]
[1741642244417,0.06369846,119.04,119.02,8.45994147]
[1741642245117,0.06369846,119.04,119.02,0.05334147]
[1741642245522,20.51790452,119.04,119.02,0.05334147]
[1741642245922,20.51790452,119.04,118.97,2.1866]
[1741642246119,20.45420606,119.02,118.97,2.1866]
[1741642246320,20.45420606,119.02,118.98,8.4093]
[1741642246321,8.4079,119.01,118.98,8.4093]
[1741642246522,61.69420606,119.02,118.97,2.1866]
[1741642246921,8.4079,119.01,118.97,10.5966]
[1741642247121,8.4627106,119.01,118.97,10.5966]
[1741642247322,8.4627106,119.01,118.97,2.1866]
[1741642247657,8.4627106,119.01,118.98,8.4093]
[1741642247821,8.4627106,119.01,118.97,2.1866]
[1741642248333,0.0548106,119.01,118.97,2.1866]
[1741642248730,0.0548106,119.01,118.98,8.4092]
[1741642248936,8.4082,119.0,118.98,8.4092]
[1741642249330,0.0548106,119.01,118.96,4.2559]
[1741642249530,8.4083,119.0,118.96,4.2559]
[1741642250027,0.0548106,119.01,118.97,8.41]
[1741642250232,8.4626106,119.01,118.96,4.2559]
[1741642250638,8.4626106,119.01,118.98,8.4093]
[1741642250830,8.4082,119.0,118.98,8.4093]
[1741642251535,0.0548106,119.01,118.97,8.41]
[1741642251732,20.45420606,119.0,118.97,8.41]
[1741642252138,28.86270606,119.0,118.97,8.41]
[1741642252437,20.45420606,119.0,118.97,8.41]
[1741642252938,8.4092,118.99,118.96,12.6665]
[1741642253341,8.4092,118.99,118.96,4.2559]
[1741642253538,8.4092,118.99,118.97,8.4102]
[1741642253929,8.4092,118.99,118.96,4.2559]
[1741642253930,8.4092,118.99,118.96,12.6663]
[1741642254339,8.4092,118.99,118.96,4.2559]
[1741642254535,8.4092,118.99,118.97,8.4102]
[1741642255035,20.45420606,119.0,118.98,8.4092]
[1741642255236,0.0548106,119.01,118.96,4.2559]
[1741642255436,0.0548106,119.01,118.96,44.8559]
[1741642255637,0.0548106,119.01,119.0,8.4082]
[1741642256044,20.45420606,119.06,119.03,8.4061]
[1741642256239,20.45420606,119.06,119.0,40.58]
[1741642256447,20.45420606,119.08,119.01,2.1292]
[1741642256642,28.85710606,119.08,119.05,8.4046]
[1741642257243,28.85710606,119.08,119.05,8.4673278]
[1741642257537,20.51249937,119.08,119.05,0.0627278]
[1741642257844,0.05829331,119.08,119.05,0.0627278]
[1741642259139,20.45420606,119.12,119.05,0.0627278]
[1741642259850,20.45420606,119.14,119.05,0.0627278]
[1741642260053,20.45420606,119.14,119.06,20.45420606]
[1741642260346,40.38,119.16,119.09,0.0642765]
[1741642260347,0.06213874,119.11,119.09,0.0642765]
[1741642260546,20.45420606,119.16,119.09,40.4642765]
[1741642260846,8.398,119.15,119.1,8.4007]
[1741642261142,20.45420606,119.16,119.09,40.4]
[1741642261844,0.05895535,119.14,119.11,0.05346825]
[1741642262248,0.05895535,119.14,119.12,8.3995]
[1741642262649,0.05895535,119.14,119.11,8.45326825]
[1741642262948,0.05895535,119.14,119.11,0.05346825]
[1741642263447,0.05895535,119.14,119.12,8.3993]
[1741642264949,0.05895535,119.14,119.11,0.05346825]
[1741642266141,0.05895535,119.14,119.12,8.3993]
[1741642268146,0.05895535,119.14,119.13,8.399]
[1741642268353,0.05895535,119.14,119.11,0.05346825]
[1741642268748,0.05895535,119.14,119.12,8.3992]
[1741642269555,6.4522,119.2,119.11,0.05346825]
[1741642269556,277.08,119.26,119.13,40.0]
[1741642269855,20.45420606,119.19,119.13,40.0]
[1741642270154,28.84950606,119.19,119.15,8.3971]
[1741642270544,28.84950606,119.19,119.13,40.0]
[1741642270751,0.06033561,119.18,119.16,0.05711191]
[1741642270953,0.06033561,119.18,119.16,8.45391191]
[1741642271165,8.45603561,119.18,119.16,0.05711191]
[1741642272254,8.45603561,119.18,119.16,8.45391191]
[1741642272453,8.45603561,119.18,119.16,0.05711191]
[1741642275651,0.06033561,119.18,119.16,0.05711191]
[1741642276255,0.06033561,119.18,119.17,8.3962]
[1741642277253,20.45420606,119.22,119.17,39.78]
[1741642277487,20.45420606,119.22,119.2,8.3938]
[1741642277655,8.3923,119.23,119.2,8.3938]
[1741642278461,8.45261624,119.23,119.2,8.45285683]
[1741642278669,20.45420606,119.22,119.2,0.05905683]
[1741642278858,80.66841212,119.22,119.15,276.96]
[1741642279060,8.3959,119.18,119.15,8.3972]
[1741642279656,20.45420606,119.17,119.09,276.96]
[1741642279859,20.45420606,119.17,119.1,39.76]
[1741642280060,8.45320773,119.14,119.12,0.05630886]
[1741642280462,0.05450773,119.14,119.12,0.05630886]
[1741642280663,8.399,119.13,119.12,0.05630886]
[1741642282068,8.4004,119.12,119.07,39.76]
[1741642282365,20.45420606,119.13,119.07,39.76]
[1741642283163,8.4001,119.12,119.08,8.4019]
[1741642283365,0.06137363,119.11,119.09,0.05873987]
[1741642283560,20.45420606,119.1,119.03,39.76]
[1741642283863,8.4036,119.07,119.03,4.0814]
[1741642284059,20.45420606,119.1,119.03,43.8614]
[1741642284366,8.4043,119.06,119.03,43.8614]
[1741642284663,20.45420606,119.08,119.03,41.8]
[1741642284900,0.06207886,119.06,119.03,0.06280653]
[1741642285861,8.4054,119.04,119.03,0.06280653]
[1741642286456,8.4082,119.01,118.97,41.877]
[1741642286662,20.45420606,119.04,118.97,48.17]
[1741642287007,8.4082,119.01,118.97,39.76]
[1741642287264,20.45420606,119.04,118.97,8.4102]
[1741642287465,20.45420606,119.04,118.96,2.0467]
[1741642287666,0.05401463,119.02,118.99,0.06244814]
[1741642288167,8.4082,119.0,118.99,0.06244814]
[1741642290868,8.4104,118.97,118.94,325.1922]
[1741642291068,46.1186,119.05,118.91,39.78]
[1741642291069,32.96767558,119.0,118.91,39.78]
[1741642291263,32.96767558,118.96,118.88,10.4471]
[1741642291473,8.4142,118.92,118.88,10.4471]
[1741642291664,72.74767558,118.96,118.88,8.4163]
[1741642291860,32.96767558,118.94,118.87,8.417]
[1741642292061,32.96767558,118.94,118.86,41.9979]
[1741642292062,8.415,118.91,118.86,41.9979]
[1741642292474,2.0656,118.93,118.86,41.9979]
[1741642292766,0.05870063,118.9,118.85,39.8]
[1741642293172,0.05870063,118.9,118.88,8.4164]
[1741642293673,0.05870063,118.9,118.87,8.4171]
[1741642293873,0.05870063,118.9,118.85,39.8]
[1741642294369,0.05870063,118.9,118.86,8.4177]
[1741642295068,0.05870063,118.9,118.87,8.4168]
[1741642295275,0.05870063,118.9,118.84,316.94]
[1741642295773,0.05870063,118.9,118.87,8.417]
[1741642296273,0.05870063,118.9,118.84,316.94]
[1741642296667,0.05870063,118.9,118.87,8.4169]
[1741642296867,0.05870063,118.9,118.84,316.94]
[1741642297278,0.05870063,118.9,118.89,8.416]
[1741642299675,48.2314,118.96,118.88,39.82]
[1741642299873,48.2314,118.96,118.88,39.88240169]
[1741642300175,8.4118,118.95,118.88,39.82]
[1741642300376,8.4118,118.95,118.92,8.4134]
[1741642300571,8.4118,118.95,118.88,39.82]
[1741642300976,0.05306693,118.93,118.91,8.4142]
[1741642301861,0.05306693,118.93,118.9,0.06435812]
[1741642302180,0.05306693,118.93,118.91,8.4142]
[1741642302585,0.05306693,118.93,118.9,0.06435812]
[1741642302873,39.82,118.92,118.8,1.46353772]
[1741642303078,39.82,118.92,118.83,2.1927]
[1741642303476,8.4166,118.89,118.84,8.4191]
[1741642304075,0.06089932,118.88,118.84,8.4191]
[1741642304272,8.47759932,118.88,118.84,8.4191]
[1741642304476,0.06089932,118.88,118.85,8.4184]
[1741642305080,0.06089932,118.88,118.83,2.1927]
[1741642305278,8.47769932,118.88,118.83,2.1927]
[1741642305479,0.06089932,118.88,118.85,8.4184]
[1741642305880,8.47769932,118.88,118.85,8.4184]
[1741642306883,0.06089932,118.88,118.83,2.1927]
[1741642307183,39.82,118.94,118.84,277.48]
[1741642307481,39.82,118.94,118.85,39.82]
[1741642307681,8.4141,118.92,118.89,8.4156]
[1741642307882,39.82,118.94,118.85,39.82]
[1741642308081,8.4139,118.92,118.89,8.4154]
[1741642308282,8.4139,118.92,118.85,72.78767558]
[1741642308283,0.05415599,118.91,118.88,0.05600656]
[1741642308577,39.84,118.95,118.85,72.78767558]
[1741642308783,0.05345029,118.91,118.9,8.4149]
[1741642308981,8.4135,118.93,118.9,8.4149]
[1741642309184,0.06226753,118.92,118.91,8.4145]
[1741642309380,37.13587558,118.98,118.91,8.4145]
[1741642309579,42.0163,118.97,118.91,8.4145]
[1741642309788,0.05768301,118.93,118.9,8.46933082]
[1741642310084,0.05768301,118.93,118.9,0.05589437]
[1741642310378,0.05768301,118.93,118.91,8.4145]
[1741642312982,0.05768301,118.93,118.9,0.05589437]
[1741642313184,0.05768301,118.93,118.92,8.4138]
[1741642313588,0.05768301,118.93,118.91,8.4142]
[1741642313987,0.05768301,118.93,118.9,0.05589437]
[1741642314590,0.05768301,118.93,118.91,8.4146]
[1741642314886,0.05768301,118.93,118.91,8.4142]
[1741642318186,0.05768301,118.93,118.9,0.05589437]
[1741642318389,20.68997189,118.93,118.9,0.05589437]
[1741642318785,8.4146,118.91,118.9,0.05589437]
[1741642319177,20.68997189,118.93,118.9,0.05589437]
[1741642320786,20.63228888,118.91,118.87,2.0899]
[1741642321090,8.4179,118.87,118.84,8.4192]
[1741642321989,8.4181,118.86,118.83,14.8043]
[1741642324491,8.4181,118.86,118.84,8.4195]
[1741642325193,0.06002587,118.87,118.85,8.4184]
[1741642325492,0.06002587,118.87,118.83,6.3844]
[1741642325693,8.47782587,118.87,118.84,8.4192]
[1741642326291,8.4183,118.86,118.84,8.4192]
[1741642326696,8.4183,118.86,118.83,14.8043]
[1741642327392,8.4183,118.86,118.83,6.3844]
[1741642327591,0.06002587,118.87,118.84,8.4193]
[1741642327793,0.06002587,118.87,118.83,6.3844]
[1741642328128,0.06002587,118.87,118.85,8.4185]
[1741642328997,8.47742587,118.87,118.85,8.4185]
[1741642329590,0.06002587,118.87,118.85,8.4185]
[1741642330690,8.47752587,118.87,118.85,8.4185]
[1741642331802,8.47752587,118.87,118.84,8.4192]
[1741642332394,8.4183,118.86,118.84,8.4192]
[1741642332701,0.06002587,118.87,118.84,8.4192]
[1741642332909,8.47792587,118.87,118.84,8.4192]
[1741642333794,8.47792587,118.87,118.84,8.4188]
[1741642334303,0.06002587,118.87,118.86,8.4181]
[1741642334497,1.72045845,118.87,118.86,8.4181]
[1741642334696,20.63228888,118.91,118.84,39.82]
[1741642334902,20.63228888,118.93,118.85,20.63228888]
[1741642335297,62.60478888,118.95,118.85,20.63228888]
[1741642335500,8.4128,118.94,118.92,8.4137]
[1741642336002,0.05593719,118.94,118.92,39.8]
[1741642336198,20.63228888,119.0,118.93,2.181]
[1741642336505,29.04078888,119.0,118.95,8.4113]
[1741642336999,56.67298766,119.01,118.93,22.81328888]
[1741642337302,0.05372677,118.98,118.96,0.06268068]
[1741642337599,35.50829789,119.01,119.0,8.4082]
[1741642338304,2.0223,119.07,118.99,20.63228888]
[1741642338500,20.63228888,119.08,118.99,20.63228888]
[1741642338697,20.63228888,119.08,119.02,8.4063]
[1741642338898,0.06409779,119.05,119.02,39.8]
[1741642339403,0.06409779,119.05,119.04,0.05651288]
[1741642342706,0.06409779,119.05,119.04,8.46191288]
[1741642343008,2.0223,119.1,119.04,0.05651288]
[1741642343300,32.9339204,119.14,119.04,0.05651288]
[1741642343503,32.9339204,119.14,119.03,1.8632]
[1741642343709,32.9339204,119.14,119.04,32.9339204]
[1741642343917,4.2287,119.15,119.04,32.9339204]
[1741642344227,0.06422066,119.1,119.08,0.05865547]
[1741642344446,0.06422066,119.1,119.08,39.81865547]
[1741642344628,8.3995,119.13,119.09,8.4013]
[1741642344928,0.05661186,119.1,119.09,8.4013]
[1741642345127,4.2287,119.15,119.08,39.76]